fUSD/lending_fUSD_20250106
["ID","MTS","AMOUNT","RATE_DAILY","PERIOD"]
[347815290,1736125846928,-260.6253,0.00011799,2]
[347815292,1736125846939,-1498.60171808,0.00011799,3]
[347815294,1736125846951,-500.0,0.00011799,2]
[347815296,1736125846962,-9940.49482242,0.00011799,2]
[347815298,1736125846974,-55721.78921621,0.00011799,2]
[347815301,1736125846988,-716.74388547,0.00011799,2]
[347815303,1736125847001,-511.10987742,0.00011799,2]
[347815306,1736125847016,-562.00676926,0.00011799,2]
[347815308,1736125847029,-31199.9999992,0.00011799,2]
[347815311,1736125847043,-4823.27885289,0.00011799,2]
[347815313,1736125847057,-382792.66665935,0.00011799,2]
[347815315,1736125847070,-428.28720183,0.00011799,2]
[347815318,1736125847084,-4941.09052972,0.00011799,2]
[347815320,1736125847097,-466.62588,0.00011799,2]
[347815324,1736125847121,-607.275015,0.00011799,2]
[347815326,1736125847134,-321.13160229,0.00011799,2]
[347815334,1736125847202,-426.4373801,0.00010997,2]
[347815337,1736125847216,-73.5626199,0.00010997,2]
[347815339,1736125847226,-61950.03347116,0.00011799,2]
[347815341,1736125847239,-9085.46180306,0.00011799,2]
[347815344,1736125847252,-23130.0,0.00011799,2]
[347815346,1736125847265,-2170.14205106,0.00011799,2]
[347815349,1736125847280,-342.41312756,0.00011799,2]
[347815351,1736125847292,-509.40486528,0.00011799,2]
[347815353,1736125847306,-27983.0677319,0.00011799,2]
[347815356,1736125847319,-529.1999988,0.00011799,2]
[347815359,1736125847336,-4409.16215473,0.00011799,2]
[347815361,1736125847349,-2448.40278486,0.00011799,2]
[347815364,1736125847362,-349.69019323,0.00011799,2]
[347815366,1736125847375,-137896.19052902,0.00011799,2]
[347815386,1736125847550,-604.0,0.00010976,2]
[347815388,1736125847563,-26.46803487,0.00010976,2]
[347815390,1736125847573,-1826.33197013,0.00011799,2]
[347815393,1736125847594,-3165.53123548,0.00011799,2]
[347815396,1736125847607,-1789.274995,0.00011799,2]
[347815398,1736125847621,-84009.89723876,0.00011799,2]
[347815400,1736125847634,-1344.97972284,0.00011799,2]
[347815403,1736125847647,-3042.216401,0.00011799,2]
[347815405,1736125847660,-332.93781402,0.00011799,2]
[347815408,1736125847674,-743.5529996,0.00011799,2]
[347815410,1736125847687,-495.2572,0.00011799,2]
[347815412,1736125847700,-525.492,0.00011799,2]
[347815424,1736125847804,-521.96,0.00010976,2]
[347815426,1736125847816,-150.0,0.00011479,2]
[347815428,1736125847825,-12336.1464152,0.00011799,2]
[347815430,1736125847837,-3409.026036,0.00011799,2]
[347815436,1736125847881,-4.84634493,0.00011799,2]
[347815438,1736125847892,-5106.55160518,0.00011799,2]
[347815440,1736125847903,-432.82035298,0.00011799,2]
[347815442,1736125847915,-22983.70014853,0.00011799,2]
[347815444,1736125847931,-3367.09382291,0.00011799,2]
[347815446,1736125847942,-482.5,0.00011799,2]
[347815450,1736125847961,-1680.0,0.00011799,2]
[347815452,1736125847976,-727.04806406,0.00011799,2]
[347815454,1736125847988,-1875.10000005,0.00011799,2]
[347815457,1736125848000,-7163.59288313,0.00011799,2]
[347815459,1736125848011,-29516.81888699,0.00011799,2]
[347815461,1736125848022,-37543.6328268,0.00011799,2]
[347815463,1736125848035,-10058.08995029,0.00011799,2]
[347815852,1736125895030,987.40874676,6.881e-05,7]
[347815854,1736126405167,150.0,6.881e-05,30]
[347815855,1736126405458,150.0,7.961e-05,30]
[347815856,1736126405803,150.0,9.041e-05,30]
[347815857,1736126406666,150.0,0.00010121,30]
[347815858,1736126406977,150.0,0.00011201,30]
[347815859,1736126407519,150.0,0.00012281,30]
[347815860,1736126703650,150.0,6.881e-05,30]
[347815861,1736126704085,150.0,8.771e-05,30]
[347815862,1736126705214,150.0,0.00010661,30]
[347815866,1736126780880,2000.89,0.00011,30]
[347815868,1736126791410,2006.0,0.00011,30]
[347815878,1736127003225,158.0,6.881e-05,30]
[347815879,1736127003554,158.0,9.905e-05,30]
[347815905,1736127033038,-2503.24123953,8.219e-05,2]
[347815907,1736127033048,-1168.27908934,8.219e-05,2]
[347815910,1736127033061,-766.39410763,8.219e-05,2]
[347815912,1736127033073,-857.33012347,8.219e-05,2]
[347815914,1736127033084,-300.0,8.219e-05,2]
[347815916,1736127033096,-1240.98667956,8.219e-05,2]
[347815918,1736127033106,-578.35,8.219e-05,2]
[347815920,1736127033116,-164.49,9.689e-05,2]
[347815922,1736127033126,-250.0,9.693e-05,2]
[347815924,1736127033135,-290.97,9.701e-05,2]
[347815926,1736127033145,-1000.0,9.752e-05,2]
[347815928,1736127033155,-225.7207642,9.775e-05,2]
[347815930,1736127033165,-200.0,9.787e-05,2]
[347815932,1736127033175,-225.7207642,9.789e-05,2]
[347815934,1736127033185,-225.7207642,9.791e-05,2]
[347815936,1736127033195,-225.7207642,9.791e-05,2]
[347815938,1736127033204,-225.7207642,9.794e-05,2]
[347815940,1736127033214,-225.7207642,9.794e-05,2]
[347815942,1736127033226,-1477.77,9.824e-05,2]
[347815944,1736127033235,-364.75,9.873e-05,2]
[347815946,1736127033245,-259.7623007,0.0001,2]
[347815948,1736127033255,-6036.9437708,0.0001,2]
[347815950,1736127033264,-10000.0,0.0001,10]
[347815952,1736127033276,-500.0,0.00010075,2]
[347815954,1736127033286,-150.0,0.00010123,2]
[347815956,1736127033296,-500.0,0.00010124,2]
[347815958,1736127033305,-500.0,0.00010124,2]
[347815960,1736127033314,-500.0,0.00010124,2]
[347815962,1736127033325,-500.0,0.00010124,2]
[347815964,1736127033334,-500.0,0.00010124,2]
[347815966,1736127033343,-500.0,0.00010124,2]
[347815968,1736127033354,-500.0,0.00010124,2]
[347815970,1736127033363,-238.27190607,0.00010124,2]
[347815973,1736127033375,-261.72809393,0.00010124,2]
[347815975,1736127033384,-500.0,0.00010124,2]
[347815977,1736127033394,-500.0,0.00010124,2]
[347815979,1736127033403,-500.0,0.00010124,2]
[347815981,1736127033412,-500.0,0.00010124,2]
[347815983,1736127033422,-500.0,0.00010124,2]
[347815985,1736127033431,-500.0,0.00010124,2]
[347815987,1736127033440,-500.0,0.00010124,2]
[347815989,1736127033450,-500.0,0.00010124,2]
[347815991,1736127033459,-500.0,0.00010124,2]
[347815993,1736127033471,-500.0,0.00010124,2]
[347815995,1736127033480,-500.0,0.00010124,2]
[347815997,1736127033489,-500.0,0.00010124,2]
[347815999,1736127033502,-500.0,0.00010124,2]
[347816001,1736127033512,-500.0,0.00010124,2]
[347816003,1736127033521,-500.0,0.00010124,2]
[347816005,1736127033531,-500.0,0.00010124,2]
[347816007,1736127033540,-500.0,0.00010124,2]
[347816009,1736127033550,-500.0,0.00010124,2]
[347816011,1736127033559,-500.0,0.00010124,2]
[347816013,1736127033568,-500.0,0.00010124,2]
[347816015,1736127033578,-500.0,0.00010124,2]
[347816017,1736127033588,-500.0,0.00010124,2]
[347816019,1736127033598,-500.0,0.00010124,2]
[347816021,1736127033607,-500.0,0.00010124,2]
[347816023,1736127033617,-500.0,0.00010124,2]
[347816025,1736127033627,-500.0,0.00010124,2]
[347816027,1736127033636,-212.62,0.00010124,2]
[347816029,1736127033645,-500.0,0.00010124,2]
[347816031,1736127033654,-500.0,0.00010124,2]
[347816033,1736127033664,-500.0,0.00010124,2]
[347816035,1736127033674,-150.99,0.00010124,2]
[347816037,1736127033683,-299.99,0.00010124,2]
[347816039,1736127033692,-500.0,0.00010124,2]
[347816041,1736127033702,-1950.61,0.00010124,2]
[347816042,1736127033711,-598.27,0.00010124,2]
[347816043,1736127033722,-636.32,0.00010124,2]
[347816044,1736127033731,-150.49,0.00010137,2]
[347816045,1736127033740,-381.96,0.0001022,2]
[347816046,1736127033750,-477.32,0.00010245,2]
[347816047,1736127033759,-4806.1797,0.00010298,2]
[347816048,1736127033768,-1267.9896,0.00010298,2]
[347816049,1736127033778,-500.0,0.00010398,2]
[347816050,1736127033787,-500.0,0.00010398,2]
[347816051,1736127033796,-500.0,0.00010398,2]
[347816053,1736127033805,-500.0,0.00010398,2]
[347816055,1736127033815,-500.0,0.00010398,2]
[347816057,1736127033824,-500.0,0.00010398,2]
[347816059,1736127033833,-500.0,0.00010398,2]
[347816061,1736127033843,-500.0,0.00010398,2]
[347816063,1736127033852,-500.0,0.00010398,2]
[347816065,1736127033861,-500.0,0.00010398,2]
[347816067,1736127033870,-500.0,0.00010398,2]
[347816069,1736127033880,-500.0,0.00010398,2]
[347816071,1736127033889,-500.0,0.00010398,2]
[347816073,1736127033898,-500.0,0.00010398,2]
[347816075,1736127033907,-500.0,0.00010398,2]
[347816077,1736127033917,-500.0,0.00010398,2]
[347816079,1736127033926,-500.0,0.00010398,2]
[347816081,1736127033936,-500.0,0.00010398,2]
[347816083,1736127033945,-500.0,0.00010398,2]
[347816085,1736127033954,-500.0,0.00010398,2]
[347816087,1736127033963,-500.0,0.00010398,2]
[347816089,1736127033974,-500.0,0.00010398,2]
[347816091,1736127033983,-500.0,0.00010398,2]
[347816093,1736127033992,-500.0,0.00010398,2]
[347816095,1736127034002,-500.0,0.00010398,2]
[347816096,1736127034011,-111.10715919,0.00010398,2]
[347816099,1736127034024,-388.89284081,0.00010398,2]
[347816101,1736127034034,-500.0,0.00010398,2]
[347816103,1736127034044,-500.0,0.00010398,2]
[347816105,1736127034054,-500.0,0.00010398,2]
[347816107,1736127034063,-500.0,0.00010398,2]
[347816109,1736127034074,-500.0,0.00010398,2]
[347816111,1736127034083,-500.0,0.00010398,2]
[347816113,1736127034092,-500.0,0.00010398,2]
[347816115,1736127034101,-500.0,0.00010398,2]
[347816117,1736127034111,-500.0,0.00010398,2]
[347816119,1736127034120,-500.0,0.00010398,2]
[347816121,1736127034129,-500.0,0.00010398,2]
[347816123,1736127034139,-1950.61,0.00010398,2]
[347816125,1736127034149,-598.27,0.00010398,2]
[347816127,1736127034158,-636.32,0.00010398,2]
[347816128,1736127034167,-578.35,0.00010481,2]
[347816130,1736127034177,-158.4,0.00010658,2]
[347816132,1736127034186,-150.0,0.00010658,2]
[347816134,1736127034196,-200.0,0.00010671,2]
[347816136,1736127034205,-500.0,0.00010672,2]
[347816138,1736127034215,-500.0,0.00010672,2]
[347816141,1736127034225,-500.0,0.00010672,2]
[347816143,1736127034235,-500.0,0.00010672,2]
[347816145,1736127034245,-500.0,0.00010672,2]
[347816147,1736127034254,-500.0,0.00010672,2]
[347816149,1736127034264,-500.0,0.00010672,2]
[347816151,1736127034274,-500.0,0.00010672,2]
[347816153,1736127034285,-500.0,0.00010672,2]
[347816155,1736127034295,-500.0,0.00010672,2]
[347816157,1736127034306,-500.0,0.00010672,2]
[347816159,1736127034315,-500.0,0.00010672,2]
[347816161,1736127034325,-500.0,0.00010672,2]
[347816163,1736127034334,-500.0,0.00010672,2]
[347816165,1736127034344,-500.0,0.00010672,2]
[347816167,1736127034355,-500.0,0.00010672,2]
[347816169,1736127034365,-500.0,0.00010672,2]
[347816171,1736127034374,-375.84,0.00010672,2]
[347816173,1736127034384,-500.0,0.00010672,2]
[347816175,1736127034394,-500.0,0.00010672,2]
[347816177,1736127034405,-500.0,0.00010672,2]
[347816179,1736127034415,-500.0,0.00010672,2]
[347816181,1736127034424,-500.0,0.00010672,2]
[347816183,1736127034434,-500.0,0.00010672,2]
[347816185,1736127034444,-500.0,0.00010672,2]
[347816187,1736127034453,-500.0,0.00010672,2]
[347816189,1736127034463,-500.0,0.00010672,2]
[347816191,1736127034473,-500.0,0.00010672,2]
[347816193,1736127034483,-500.0,0.00010672,2]
[347816195,1736127034492,-500.0,0.00010672,2]
[347816197,1736127034502,-500.0,0.00010672,2]
[347816199,1736127034512,-500.0,0.00010672,2]
[347816201,1736127034521,-500.0,0.00010672,2]
[347816202,1736127034531,-500.0,0.00010672,2]
[347816205,1736127034540,-500.0,0.00010672,2]
[347816207,1736127034550,-500.0,0.00010672,2]
[347816209,1736127034559,-500.0,0.00010672,2]
[347816211,1736127034569,-1950.61,0.00010672,2]
[347816212,1736127034579,-598.27,0.00010672,2]
[347816214,1736127034588,-636.32,0.00010672,2]
[347816216,1736127034597,-256.40014212,0.000107,2]
[347816218,1736127034607,-233.64127874,0.00010701,2]
[347816220,1736127034616,-150.0,0.00010701,2]
[347816223,1736127034625,-150.0,0.00010701,2]
[347816225,1736127034635,-500.0,0.0001086,2]
[347816227,1736127034645,-1000.0,0.00010876,2]
[347816228,1736127034654,-856.565,0.00010896,2]
[347816232,1736127034674,-7371.7106,0.00010897,2]
[347816234,1736127034685,-500.0,0.00010946,2]
[347816236,1736127034694,-500.0,0.00010946,2]
[347816238,1736127034704,-500.0,0.00010946,2]
[347816240,1736127034713,-500.0,0.00010946,2]
[347816242,1736127034725,-500.0,0.00010946,2]
[347816244,1736127034734,-510.87,0.00010946,2]
[347816246,1736127034744,-290.82,0.00010946,2]
[347816248,1736127034753,-500.0,0.00010946,2]
[347816250,1736127034762,-290.64,0.00010946,2]
[347816252,1736127034772,-500.0,0.00010946,2]
[347816254,1736127034782,-453.39,0.00010946,2]
[347816256,1736127034791,-376.32,0.00010946,2]
[347816258,1736127034802,-500.0,0.00010946,2]
[347816260,1736127034811,-500.0,0.00010946,2]
[347816262,1736127034820,-500.0,0.00010946,2]
[347816264,1736127034830,-500.0,0.00010946,2]
[347816266,1736127034839,-496.77,0.00010946,2]
[347816268,1736127034848,-500.0,0.00010946,2]
[347816270,1736127034858,-500.0,0.00010946,2]
[347816272,1736127034867,-1950.61,0.00010946,2]
[347816274,1736127034877,-598.27,0.00010946,2]
[347816276,1736127034886,-636.32,0.00010946,2]
[347816278,1736127034896,-150.0,0.00010959,2]
[347816280,1736127034906,-1000.0,0.00010971,2]
[347816282,1736127034915,-500.0,0.00010976,2]
[347816284,1736127034924,-400.0,0.00010986,2]
[347816286,1736127034934,-173.60428834,0.00010996,2]
[347816288,1736127034943,-500.0,0.00010996,2]
[347816290,1736127034953,-500.0,0.00010996,2]
[347816292,1736127034963,-500.0,0.00010996,2]
[347816295,1736127034974,-2283.28,0.00010996,2]
[347816297,1736127034983,-500.0,0.00010996,2]
[347816299,1736127034993,-500.0,0.00010996,2]
[347816301,1736127035003,-500.0,0.00010996,2]
[347816303,1736127035013,-500.0,0.00010996,2]
[347816305,1736127035023,-648.85,0.00010996,2]
[347816307,1736127035032,-612.57,0.00010996,2]
[347816309,1736127035042,-500.0,0.00010996,2]
[347816311,1736127035051,-1361.7,0.00010996,2]
[347816313,1736127035061,-500.0,0.00010996,2]
[347816315,1736127035070,-500.0,0.00010996,2]
[347816317,1736127035080,-500.0,0.00010996,2]
[347816319,1736127035089,-604.95,0.00010996,2]
[347816321,1736127035099,-500.0,0.00010996,2]
[347816323,1736127035108,-500.0,0.00010996,2]
[347816325,1736127035118,-500.0,0.00010996,2]
[347816327,1736127035127,-500.0,0.00010996,2]
[347816329,1736127035137,-537.75,0.00010996,2]
[347816331,1736127035146,-510.962396,0.00010996,2]
[347816333,1736127035156,-1895.94,0.00010996,2]
[347816335,1736127035166,-399.335667,0.00010996,2]
[347816337,1736127035176,-500.0,0.00010996,2]
[347816339,1736127035185,-500.0,0.00010996,2]
[347816341,1736127035194,-500.0,0.00010996,2]
[347816343,1736127035204,-500.0,0.00010996,2]
[347816345,1736127035215,-500.0,0.00010996,2]
[347816348,1736127035226,-421.86351446,0.00010996,2]
[347816350,1736127035240,-761.76648554,0.00010996,2]
[347816352,1736127035250,-2902.5231,0.00010997,2]
[347816354,1736127035260,-161.7896,0.00010997,2]
[347816356,1736127035269,-1037.3732,0.00010997,2]
[347816358,1736127035283,-500.0,0.00010997,2]
[347816360,1736127035292,-500.0,0.00010997,2]
[347816362,1736127035302,-500.0,0.00010997,2]
[347816364,1736127035312,-500.0,0.00010997,2]
[347816366,1736127035323,-500.0,0.00010997,2]
[347816368,1736127035333,-5000.0,0.00010998,2]
[347816370,1736127035342,-500.0,0.00010999,2]
[347816372,1736127035352,-651.45,0.00010999,2]
[347816374,1736127035362,-667.25,0.00010999,2]
[347816376,1736127035371,-500.0,0.00010999,2]
[347816378,1736127035381,-500.0,0.00010999,2]
[347816380,1736127035390,-668.99,0.00010999,2]
[347816382,1736127035399,-614.08295771,0.00010999,2]
[347816384,1736127035409,-500.0,0.00010999,2]
[347816386,1736127035418,-504.74518927,0.00010999,2]
[347816389,1736127035428,-500.0,0.00010999,2]
[347816391,1736127035437,-524.93,0.00010999,2]
[347816392,1736127035446,-506.79667882,0.00010999,2]
[347816395,1736127035456,-506.86206916,0.00010999,2]
[347816396,1736127035465,-500.0,0.00010999,2]
[347816398,1736127035476,-500.0,0.00010999,2]
[347816400,1736127035485,-500.0,0.00010999,2]
[347816402,1736127035494,-506.4962775,0.00010999,2]
[347816404,1736127035503,-500.0,0.00010999,2]
[347816406,1736127035513,-505.849332,0.00010999,2]
[347816408,1736127035522,-550.0,0.00011,2]
[347816411,1736127035532,-15206.3351012,0.00011,2]
[347816413,1736127035544,-51340.30876203,0.00011,2]
[347816415,1736127035555,-9836.4400418,0.00011,2]
[347816417,1736127035566,-3000.0,0.00011,2]
[347816419,1736127035578,-6515.385521,0.00011,2]
[347816422,1736127035595,-4973.263022,0.00011,2]
[347816425,1736127035607,-2742.26755197,0.00011,2]
[347816426,1736127035616,-500.0,0.00011097,2]
[347816429,1736127035626,-55.29193068,0.00011097,2]
[347816431,1736127035637,-444.70806932,0.00011097,2]
[347816433,1736127035647,-908.28,0.00011097,2]
[347816435,1736127035656,-156.30118487,0.00011097,2]
[347816437,1736127035665,-148.51814777,0.00011097,2]
[347816685,1736127038376,-508.92944958,0.00010999,2]
[347816687,1736127038386,-439.54185223,0.00011097,2]
[347816689,1736127038395,-500.0,0.00011097,2]
[347816691,1736127038404,-1564.73,0.00011097,2]
[347816693,1736127038413,-699.23,0.00011097,2]
[347816695,1736127038422,-1282.01558566,0.00011097,2]
[347816697,1736127038434,-1067.77441434,0.00011097,2]
[347816699,1736127038443,-2469.64,0.00011097,2]
[347816701,1736127038452,-172.2390147,0.00011097,2]
[347816703,1736127038462,-632.99518865,0.00011097,2]
[347816705,1736127038474,-254.47481135,0.00011097,2]
[347816707,1736127038483,-1756.34,0.00011097,2]
[347816709,1736127038492,-1118.51,0.00011098,2]
[347816711,1736127038502,-1432.79,0.00011098,2]
[347816713,1736127038511,-241.78683865,0.00011098,2]
[347816715,1736127038522,-301.91055826,0.00011098,2]
[347816718,1736127038533,-248.95260309,0.00011098,2]
[347816743,1736127038753,-500.0,0.00011098,2]
[347816745,1736127038768,-500.0,0.00011098,2]
[347816747,1736127038777,-500.0,0.00011098,2]
[347816749,1736127038787,-500.0,0.00011098,2]
[347816751,1736127038796,-543.67,0.00011098,2]
[347816753,1736127038805,-500.0,0.00011098,2]
[347816755,1736127038815,-527.24,0.00011098,2]
[347816757,1736127038823,-500.0,0.00011098,2]
[347816759,1736127038832,-1173.25,0.00011098,2]
[347816761,1736127038842,-3614.73,0.00011098,2]
[347816763,1736127038851,-1000.0,0.00011098,2]
[347816765,1736127038860,-500.0,0.00011098,2]
[347816767,1736127038869,-500.0,0.00011098,2]
[347816769,1736127038878,-857.86,0.00011098,2]
[347816771,1736127038887,-500.0,0.00011098,2]
[347816773,1736127038896,-500.0,0.00011098,2]
[347816775,1736127038906,-500.0,0.00011098,2]
[347816777,1736127038915,-500.0,0.00011098,2]
[347816779,1736127038924,-2319.93,0.00011098,2]
[347816781,1736127038933,-9598.3031,0.0001112,2]
[347816783,1736127038943,-255.0,0.00011125,2]
[347816785,1736127038951,-500.0,0.0001122,2]
[347816787,1736127038961,-500.0,0.0001122,2]
[347816789,1736127038971,-603.2,0.0001122,2]
[347816791,1736127038980,-500.0,0.0001122,2]
[347816793,1736127038989,-500.0,0.0001122,2]
[347816795,1736127038999,-500.0,0.0001122,2]
[347816797,1736127039008,-500.0,0.0001122,2]
[347816799,1736127039017,-184.09,0.0001122,2]
[347816801,1736127039027,-500.0,0.0001122,2]
[347816803,1736127039036,-500.0,0.0001122,2]
[347816805,1736127039045,-500.0,0.0001122,2]
[347816807,1736127039055,-500.0,0.0001122,2]
[347816809,1736127039064,-1950.61,0.0001122,2]
[347816811,1736127039073,-598.27,0.0001122,2]
[347816813,1736127039082,-636.32,0.0001122,2]
[347816815,1736127039092,-448.08164642,0.00011264,2]
[347816817,1736127039101,-500.0,0.00011264,2]
[347816819,1736127039110,-500.0,0.00011269,2]
[347816821,1736127039119,-500.0,0.00011269,2]
[347816823,1736127039129,-483.07946097,0.00011269,2]
[347816825,1736127039138,-500.0,0.0001127,2]
[347816827,1736127039147,-500.0,0.0001127,2]
[347816828,1736127039156,-357.54641472,0.0001127,2]
[347816831,1736127039166,-500.0,0.0001127,2]
[347816833,1736127039175,-500.0,0.0001127,2]
[347816835,1736127039184,-500.0,0.0001127,2]
[347816837,1736127039193,-500.0,0.0001127,2]
[347816838,1736127039203,-215.09055352,0.0001127,2]
[347816841,1736127039212,-500.0,0.0001127,2]
[347816842,1736127039221,-500.0,0.0001127,2]
[347816844,1736127039231,-500.0,0.0001127,2]
[347816847,1736127039240,-500.0,0.0001127,2]
[347816848,1736127039249,-158.8,0.0001127,2]
[347816851,1736127039259,-500.0,0.0001127,2]
[347816853,1736127039268,-352.48797856,0.0001127,2]
[347816854,1736127039280,-500.0,0.0001127,2]
[347816856,1736127039290,-176.81,0.0001127,2]
[347816858,1736127039299,-500.0,0.0001127,2]
[347816860,1736127039309,-500.0,0.0001127,2]
[347816862,1736127039319,-500.0,0.0001127,2]
[347816864,1736127039330,-500.0,0.0001127,2]
[347816866,1736127039339,-500.0,0.0001127,2]
[347816868,1736127039350,-500.0,0.0001127,2]
[347816870,1736127039360,-500.0,0.0001127,2]
[347816872,1736127039369,-500.0,0.0001127,2]
[347816874,1736127039379,-500.0,0.0001127,2]
[347816876,1736127039388,-500.0,0.0001127,2]
[347816878,1736127039397,-500.0,0.0001127,2]
[347816880,1736127039406,-500.0,0.0001127,2]
[347816882,1736127039415,-500.0,0.0001127,2]
[347816884,1736127039424,-500.0,0.0001127,2]
[347816886,1736127039433,-500.0,0.0001127,2]
[347816888,1736127039443,-500.0,0.0001127,2]
[347816890,1736127039452,-500.0,0.0001127,2]
[347816892,1736127039462,-500.0,0.0001127,2]
[347816894,1736127039471,-500.0,0.0001127,2]
[347816896,1736127039480,-249.5,0.0001127,2]
[347816898,1736127039490,-500.0,0.0001127,2]
[347816901,1736127039500,-500.0,0.0001127,2]
[347816903,1736127039509,-500.0,0.0001127,2]
[347816905,1736127039519,-500.0,0.0001127,2]
[347816907,1736127039528,-500.0,0.0001127,2]
[347816908,1736127039538,-534.18,0.0001127,2]
[347816910,1736127039548,-500.0,0.0001127,2]
[347816912,1736127039557,-500.0,0.0001127,2]
[347816915,1736127039567,-500.0,0.0001127,2]
[347816917,1736127039576,-500.0,0.0001127,2]
[347816919,1736127039586,-391.33684317,0.0001127,2]
[347816921,1736127039595,-500.0,0.0001127,2]
[347816923,1736127039605,-257.23,0.0001127,2]
[347816924,1736127039614,-500.0,0.0001127,2]
[347816926,1736127039623,-500.0,0.0001127,2]
[347816928,1736127039632,-500.0,0.0001127,2]
[347816930,1736127039641,-500.0,0.0001127,2]
[347816932,1736127039651,-500.0,0.0001127,2]
[347816934,1736127039660,-500.0,0.0001127,2]
[347816936,1736127039669,-500.0,0.0001127,2]
[347816938,1736127039679,-500.0,0.0001127,2]
[347816940,1736127039687,-500.0,0.0001127,2]
[347816942,1736127039697,-500.0,0.0001127,2]
[347816944,1736127039706,-500.0,0.0001127,2]
[347816946,1736127039716,-500.0,0.0001127,2]
[347816948,1736127039725,-500.0,0.0001127,2]
[347816950,1736127039734,-500.0,0.0001127,2]
[347816952,1736127039746,-2283.28,0.0001127,2]
[347816954,1736127039755,-500.0,0.0001127,2]
[347816956,1736127039764,-537.16,0.0001127,2]
[347816958,1736127039774,-500.0,0.0001127,2]
[347816960,1736127039783,-500.0,0.0001127,2]
[347816962,1736127039792,-500.0,0.0001127,2]
[347816964,1736127039801,-500.0,0.0001127,2]
[347816966,1736127039811,-500.0,0.0001127,2]
[347816968,1736127039820,-500.0,0.0001127,2]
[347816970,1736127039829,-500.0,0.0001127,2]
[347816972,1736127039839,-500.0,0.0001127,2]
[347816974,1736127039848,-500.0,0.0001127,2]
[347816976,1736127039857,-500.0,0.0001127,2]
[347816978,1736127039868,-1695.89,0.0001127,2]
[347816980,1736127039877,-500.0,0.0001127,2]
[347816982,1736127039886,-500.0,0.0001127,2]
[347816984,1736127039896,-500.0,0.0001127,2]
[347816986,1736127039905,-500.0,0.0001127,2]
[347816988,1736127039915,-648.85,0.0001127,2]
[347816990,1736127039924,-622.24,0.0001127,2]
[347816992,1736127039933,-500.0,0.0001127,2]
[347816994,1736127039943,-500.0,0.0001127,2]
[347816996,1736127039952,-500.0,0.0001127,2]
[347816998,1736127039961,-549.82,0.0001127,2]
[347817000,1736127039970,-500.0,0.0001127,2]
[347817002,1736127039981,-500.0,0.0001127,2]
[347817004,1736127039991,-500.0,0.0001127,2]
[347817006,1736127040000,-500.0,0.0001127,2]
[347817008,1736127040009,-500.0,0.0001127,2]
[347817010,1736127040019,-500.0,0.0001127,2]
[347817012,1736127040029,-1361.7,0.0001127,2]
[347817013,1736127040038,-500.0,0.0001127,2]
[347817014,1736127040048,-500.0,0.0001127,2]
[347817015,1736127040057,-288.32,0.0001127,2]
[347817016,1736127040067,-500.0,0.0001127,2]
[347817017,1736127040076,-500.0,0.0001127,2]
[347817018,1736127040086,-1327.16,0.0001127,2]